bitfinex-derivatives/quotes_ETHF0:USTF0_20250910
["timestamp","ask_amount","ask_price","bid_price","bid_amount"]
[1757490758698,0.233,4330.8,4330.7,0.7273]
[1757490758996,1.21007166,4331.2,4330.7,0.4147]
[1757490759200,1.21007166,4331.2,4330.8,0.7273]
[1757490759201,0.4136,4330.9,4330.8,0.7273]
[1757490760395,0.6466,4330.9,4330.8,0.7273]
[1757490763100,0.4136,4330.9,4330.8,0.7273]
[1757490763301,0.4385,4330.9,4330.8,0.7273]
[1757490765103,0.2055,4330.9,4330.8,0.7273]
[1757490765295,0.4385,4330.9,4330.8,0.7273]
[1757490766103,33.499,4331.3,4331.2,0.4147]
[1757490766302,33.499,4331.3,4331.2,0.7273]
[1757490766703,33.7045,4331.3,4331.2,0.7273]
[1757490767106,33.499,4331.3,4331.2,0.7273]
[1757490767501,33.266,4331.3,4331.2,0.7273]
[1757490767701,33.499,4331.3,4331.2,0.7273]
[1757490768503,33.7009,4331.3,4331.2,0.7273]
[1757490769208,33.9028,4331.3,4331.2,0.7273]
[1757490769410,34.224,4331.3,4331.2,0.7273]
[1757490771408,0.4038,4330.9,4330.8,0.2995]
[1757490771602,0.4038,4330.7,4330.6,0.2995]
[1757490771903,0.725,4330.7,4330.6,0.2995]
[1757490773300,0.725,4330.7,4330.6,0.7103]
[1757490775508,0.958,4330.7,4330.6,0.7103]
[1757490776108,0.6368,4330.7,4330.6,0.7103]
[1757490780407,0.958,4330.7,4330.6,0.7103]
[1757490781012,0.725,4330.1,4330.0,0.4199]
[1757490781309,0.958,4330.1,4330.0,0.8307]
[1757490781506,0.6368,4330.1,4330.0,0.8307]
[1757490782104,0.4038,4330.1,4330.0,0.8307]
[1757490782299,0.3212,4330.9,4330.1,0.71517]
[1757490782501,0.4349,4330.8,4330.2,0.2995]
[1757490782705,0.725,4330.8,4330.7,0.7103]
[1757490782905,0.958,4330.8,4330.7,0.7103]
[1757490783512,0.6368,4330.8,4330.7,0.7103]
[1757490784410,0.4038,4330.8,4330.7,0.7103]
[1757490784608,0.4349,4330.8,4330.7,0.7103]
[1757490785113,0.2019,4330.8,4330.7,0.7103]
[1757490785314,1.02204006,4330.9,4330.8,0.2995]
[1757490785514,1.45694006,4330.9,4330.8,0.7103]
[1757490785916,1.22394006,4330.9,4330.8,0.7103]
[1757490786213,1.45694006,4330.9,4330.8,0.7103]
[1757490787916,1.22394006,4330.9,4330.8,0.7103]
[1757490788217,0.4349,4330.9,4330.8,0.7103]
[1757490788418,0.958,4330.9,4330.8,0.7103]
[1757490789316,0.3212,4330.4,4330.3,1.6553965]
[1757490789515,0.958,4330.4,4330.1,0.2995]
[1757490789715,0.725,4330.2,4330.1,0.5081]
[1757490793924,0.725,4330.2,4330.1,0.7103]
[1757490794419,0.233,4330.5,4330.4,0.7103]
[1757490795922,0.725,4331.0,4330.9,0.5081]
[1757490796114,0.958,4331.0,4330.9,0.5081]
[1757490797121,0.725,4331.0,4330.9,0.5081]
[1757490797422,0.958,4331.0,4330.9,0.5081]
[1757490797923,0.725,4331.0,4330.9,0.5081]
[1757490798123,1.0471,4331.0,4330.5,0.1175]
[1757490798418,1.74274006,4330.7,4330.6,0.3039]
[1757490798820,1.74274006,4330.7,4330.6,0.5019]
[1757490800730,1.74274006,4330.7,4330.6,0.7069]
[1757490802634,1.43874006,4330.7,4330.6,0.7069]
[1757490803027,0.2062,4330.7,4330.6,0.7069]
[1757490803228,0.9537,4330.7,4330.6,2.3622965]
[1757490803536,1.97574006,4330.7,4330.6,0.3039]
[1757490805431,0.4167,4330.6,4330.4,1.6553965]
[1757490805639,0.304,4330.4,4330.3,1.6553965]
[1757490805833,1.74274006,4330.3,4330.2,1.6553965]
[1757490806437,1.74274006,4330.3,4330.2,2.3622965]
[1757490806839,1.74274006,4330.3,4330.2,2.1572965]
[1757490807941,0.7207,4330.3,4330.2,2.1572965]
[1757490808141,1.74274006,4330.3,4330.2,2.1572965]
[1757490812341,1.74274006,4330.3,4330.2,2.3622965]
[1757490812938,0.7207,4330.9,4330.8,0.7069]
[1757490813239,1.74274006,4330.9,4330.8,0.5019]
[1757490813643,1.74274006,4330.9,4330.6,0.3039]
[1757490813841,0.233,4331.1,4330.5,0.5323]
[1757490813842,1.74274006,4330.6,4330.5,0.5323]
[1757490814342,1.74274006,4330.6,4330.5,0.8362]
[1757490815142,0.4167,4330.6,4330.5,0.8362]
[1757490815337,1.25704006,4330.8,4330.6,0.3039]
[1757490815544,1.46324006,4330.8,4330.7,0.7069]
[1757490816341,1.02204006,4330.8,4330.7,0.7069]
[1757490816945,1.22824006,4330.8,4330.7,0.7069]
[1757490817840,1.74274006,4330.8,4330.7,0.5019]
[1757490818036,1.22824006,4330.8,4330.7,0.7069]
[1757490818234,1.22824006,4331.1,4331.0,0.8362]
[1757490818444,1.74274006,4331.1,4331.0,0.8362]
[1757490818847,1.74274006,4331.1,4331.0,0.3039]
[1757490819144,0.2062,4330.6,4330.5,1.97696121]
[1757490819335,1.22824006,4330.6,4330.5,2.18196121]
[1757490819538,1.22824006,4330.6,4330.5,2.48586121]
[1757490820443,0.1118,4331.5,4330.5,2.48586121]
[1757490820644,1.22824006,4331.0,4330.9,0.7069]
[1757490821646,1.02204006,4331.0,4330.9,0.7069]
[1757490822049,1.22824006,4331.3,4331.2,0.7069]
[1757490822241,1.46324006,4331.3,4331.2,0.7069]
[1757490824050,0.4412,4331.3,4331.2,0.7069]
[1757490824348,1.46324006,4331.3,4331.2,0.7069]
[1757490825135,0.0869,4332.5,4331.2,0.7069]
[1757490825136,0.0869,4332.5,4331.3,0.3039]
[1757490825341,1.02204006,4332.6,4332.3,0.7069]
[1757490825541,1.74274006,4332.6,4332.5,0.8362]
[1757490825749,0.235,4332.6,4332.5,0.8362]
[1757490825939,1.02204006,4332.7,4332.5,0.8362]
[1757490826245,33.264,4333.7,4332.9,0.7069]
[1757490826246,0.2062,4333.0,4332.9,0.7069]
[1757490826445,33.568,4333.7,4333.0,0.4332]
[1757490826748,1.02204006,4333.2,4333.1,0.403]
[1757490826940,1.22824006,4333.2,4333.1,0.403]
[1757490827142,1.02204006,4333.2,4333.1,0.403]
[1757490827347,1.22474006,4333.2,4333.1,0.7153]
[1757490829042,1.42134006,4333.2,4333.1,0.7153]
[1757490829851,1.74544006,4333.2,4333.1,0.7153]
[1757490831949,0.7234,4333.2,4333.1,0.7153]
[1757490832153,1.74544006,4333.2,4333.1,0.7153]
[1757490832847,1.74544006,4333.2,4333.1,0.5103]
[1757490833854,1.74544006,4333.2,4332.6,0.3123]
[1757490834153,1.42134006,4332.7,4332.6,0.7272]
[1757490834353,0.3993,4332.7,4332.6,0.7272]
[1757490834551,1.22474006,4332.7,4332.6,0.7272]
[1757490835853,0.4377,4333.3,4333.2,0.4149]
[1757490836053,1.74544006,4333.3,4333.2,0.7272]
[1757490836252,1.97944006,4333.3,4333.2,0.7272]
[1757490836459,1.74544006,4333.3,4333.2,0.7272]
[1757490836657,1.97944006,4333.3,4333.2,0.7272]
[1757490837357,1.97944006,4333.3,4333.2,0.3123]
[1757490837557,1.97944006,4333.3,4333.2,0.5158]
[1757490837960,1.97944006,4333.3,4333.2,0.3123]
[1757490838360,0.2027,4332.8,4332.7,0.7272]
[1757490838661,1.22474006,4332.8,4332.7,0.7272]
[1757490839061,0.2027,4332.8,4332.7,0.7272]
[1757490839261,1.02204006,4332.9,4332.8,0.3123]
[1757490839454,1.21864006,4332.9,4332.8,0.7272]
[1757490839654,1.42134006,4332.9,4332.8,0.7272]
[1757490840950,1.02204006,4332.9,4332.8,0.7272]
[1757490841356,0.3241,4333.6,4333.0,0.129]
[1757490841562,0.7234,4333.6,4333.5,0.5158]
[1757490841862,1.65534006,4333.6,4333.1,0.3123]
[1757490842158,0.7234,4333.5,4333.4,0.5158]
[1757490842659,0.9574,4333.5,4333.4,0.5158]
[1757490842959,0.7234,4333.2,4333.1,0.5158]
[1757490843651,1.74544006,4333.2,4333.1,0.5158]
[1757490843855,1.74544006,4333.2,4333.1,0.3123]
[1757490844055,1.74544006,4333.2,4332.6,0.3123]
[1757490844257,1.22474006,4332.7,4332.6,0.7272]
[1757490844554,0.2027,4332.7,4332.6,0.7272]
[1757490848258,1.53337781,4333.0,4332.7,0.3123]
[1757490848459,0.2027,4332.8,4332.7,0.7272]
[1757490850065,0.7234,4332.8,4332.7,0.7272]
[1757490850461,0.3993,4332.8,4332.7,0.7272]
[1757490855162,0.2027,4332.8,4332.7,0.7272]
[1757490857067,0.234,4333.0,4332.7,0.7272]
[1757490857265,0.234,4333.0,4332.5,1.77896121]
[1757490857266,0.205,4332.9,4332.8,0.3022]
[1757490857467,0.205,4332.9,4332.8,0.7151]
[1757490857667,0.75713629,4332.9,4332.8,0.7151]
[1757490858962,1.27553629,4332.9,4332.8,0.7151]
[1757490859970,0.95703629,4332.9,4332.8,0.7151]
[1757490860273,1.19103629,4332.9,4332.8,0.7151]
[1757490863583,1.50953629,4332.9,4332.8,0.7151]
[1757490864373,1.27553629,4332.9,4332.8,0.7151]
[1757490864579,0.95703629,4332.9,4332.8,0.7151]
[1757490864776,1.50953629,4332.9,4332.8,0.7151]
[1757490867380,1.50953629,4332.9,4332.8,0.5007]
[1757490867876,1.19103629,4332.9,4332.8,0.7151]
[1757490868080,1.50953629,4332.9,4332.8,0.7151]
[1757490868981,1.19103629,4332.9,4332.8,0.7151]
[1757490870679,1.27553629,4332.9,4332.8,0.5007]
[1757490870980,1.50953629,4332.9,4332.8,0.5007]
[1757490872883,1.50953629,4332.9,4332.5,0.3022]
[1757490873084,0.7234,4332.2,4332.1,0.7151]
[1757490873289,0.4049,4332.2,4332.1,0.94591999]
[1757490873786,0.4049,4332.2,4332.1,0.7151]
[1757490873987,0.7234,4332.2,4332.1,0.7151]
[1757490874187,2.5180668,4332.2,4331.6,0.3022]
[1757490874383,1.30878899,4332.1,4332.0,0.5007]
[1757490874585,1.30878899,4332.1,4332.0,0.8425]
[1757490875186,0.99028899,4332.1,4332.0,0.8425]
[1757490875490,0.58538899,4332.1,4332.0,0.8425]
[1757490876089,0.79038899,4332.1,4332.0,0.5403]
[1757490876690,0.79038899,4332.1,4332.0,0.8425]
[1757490878886,0.58538899,4332.1,4332.0,0.8425]
[1757490880091,1.74777781,4332.6,4332.0,0.8425]
[1757490880293,0.78948303,4332.5,4332.4,0.4129]
[1757490880491,0.78948303,4332.5,4332.4,0.7151]
[1757490880891,1.30788303,4332.5,4332.4,0.7151]
[1757490881696,0.78948303,4332.5,4332.4,0.7151]
[1757490882187,0.58448303,4332.5,4332.4,0.7151]
[1757490882582,0.78948303,4332.5,4332.4,0.7151]
[1757490883185,0.58448303,4332.5,4332.4,0.7151]
[1757490883390,0.205,4332.6,4332.5,0.5403]
[1757490883587,0.78682546,4332.6,4332.5,0.5403]
[1757490883993,1.30522546,4332.6,4332.5,0.8425]
[1757490884596,0.98672546,4332.6,4332.5,0.8425]
[1757490885096,1.30522546,4332.6,4332.5,0.8425]
[1757490885696,0.98672546,4332.6,4332.5,0.8425]
[1757490886387,0.78682546,4332.6,4332.5,0.8425]
[1757490887089,0.3248,4333.1,4332.5,0.8425]
[1757490887295,1.31503435,4333.0,4332.9,0.4029]
[1757490887493,1.31503435,4333.0,4332.9,0.712]
[1757490892604,1.31503435,4333.0,4332.9,0.5092]
[1757490892796,2.52431216,4333.0,4332.9,0.5092]
[1757490893001,2.61401216,4333.0,4332.5,0.1274]
[1757490893295,0.7332,4332.7,4332.6,0.5092]
[1757490894000,0.7332,4332.7,4332.6,0.3091]
[1757490894201,1.31975558,4332.7,4332.6,0.3091]
[1757490895306,1.31975558,4332.7,4332.1,0.3091]
[1757490895493,0.4084,4332.3,4332.2,0.712]
[1757490895998,0.2084,4332.3,4332.2,0.4029]
[1757490896197,0.7332,4332.3,4332.2,0.712]
[1757490897397,0.4084,4332.3,4332.2,0.712]
[1757490897698,0.184,4332.7,4332.3,0.3091]
[1757490897899,0.5924,4332.7,4332.6,0.712]
[1757490898198,1.31978373,4332.7,4332.6,0.712]
[1757490898405,0.99498373,4332.7,4332.6,0.712]
[1757490898702,1.31978373,4332.7,4332.6,0.712]
[1757490900401,2.52906154,4332.7,4332.1,0.3091]
[1757490900601,1.94247781,4332.7,4332.1,0.3091]
[1757490900993,0.7332,4332.2,4332.1,0.5092]
[1757490901499,0.4084,4332.2,4332.1,0.712]
[1757490902405,0.2084,4332.2,4332.1,0.712]
[1757490902799,0.7332,4332.5,4332.4,0.4029]
[1757490903000,1.3198244,4332.5,4332.4,0.712]
[1757490903697,0.2084,4332.5,4332.4,0.712]
[1757490903898,1.53407781,4333.4,4332.6,0.3091]
[1757490904201,1.53407781,4333.4,4333.1,0.5092]
[1757490904202,0.7332,4333.2,4333.1,0.5092]
[1757490904399,1.3197848,4333.2,4333.1,0.3091]
[1757490906002,1.5537848,4333.2,4333.1,0.3091]
[1757490906305,2.57492312,4333.2,4333.1,0.3091]
[1757490907504,2.57492312,4333.2,4333.1,0.712]
[1757490908207,2.57492312,4333.2,4333.1,0.5092]
[1757490909106,2.34092312,4333.2,4333.1,0.5092]
[1757490909306,2.57492312,4333.2,4333.1,0.5092]
[1757490910208,2.34092312,4333.2,4333.1,0.5092]
[1757490910407,2.57492312,4333.2,4333.1,0.3091]
[1757490911809,2.57492312,4333.2,4333.1,0.5092]
[1757490915809,2.34092312,4333.2,4333.1,0.5092]
[1757490916012,2.57392312,4333.2,4332.6,0.3091]
[1757490916306,1.02113832,4332.9,4332.8,0.2001]
[1757490916507,2.01612312,4332.9,4332.8,0.712]
[1757490916700,2.34092312,4332.9,4332.8,0.712]
[1757490918112,2.57392312,4332.9,4332.8,0.712]
[1757490918707,2.24912312,4332.9,4332.8,0.712]
[1757490919112,2.55872312,4332.9,4332.8,0.712]
[1757490919316,2.32572312,4332.9,4332.8,0.712]
[1757490920412,2.01612312,4332.9,4332.8,0.712]
[1757490920911,0.7949848,4332.9,4332.8,0.712]
[1757490921210,0.5865848,4332.9,4332.8,0.712]
[1757490924210,0.1977,4333.3,4333.2,0.4018]
[1757490924413,0.76805323,4333.3,4333.2,0.7041]
[1757490924914,0.76805323,4333.3,4333.2,0.89237134]
[1757490925219,0.76805323,4333.3,4333.2,0.7041]
[1757490925408,1.29015323,4333.3,4333.2,0.7041]
[1757490925810,1.29015323,4333.3,4333.2,0.89271188]
[1757490926114,1.29015323,4333.3,4333.2,0.7041]
[1757490927118,0.7198,4333.3,4333.2,0.7041]
[1757490927616,0.1977,4333.3,4333.2,0.7041]
[1757490929016,0.1977,4333.6,4333.5,0.4266]
[1757490929222,0.7628295,4333.6,4333.5,0.8284]
[1757490931814,1.2849295,4333.6,4333.5,0.8284]
[1757490932814,0.5651295,4333.6,4333.5,0.8284]
[1757490933015,0.7628295,4333.6,4333.5,0.8284]
[1757490934010,2.30606782,4333.6,4333.5,0.8284]
[1757490934214,0.9753295,4333.6,4333.5,0.8284]
[1757490934521,0.1977,4333.6,4333.5,0.8284]
[1757490934721,0.7198,4333.9,4333.8,0.7041]
[1757490935015,1.28475404,4333.9,4333.8,0.7041]
[1757490935322,0.97515404,4333.9,4333.8,0.7041]
[1757490935521,0.97503974,4333.9,4333.8,0.7041]
[1757490935919,0.56483974,4333.9,4333.8,0.7041]
[1757490936119,0.7198,4334.8,4334.7,0.203]
[1757490936317,1.284484,4334.8,4334.7,0.7041]
[1757490937114,0.7198,4334.8,4334.7,0.7041]
[1757490937722,1.28161683,4334.8,4334.7,0.3023]
[1757490937914,1.28161683,4334.8,4334.0,0.1243]
[1757490937915,1.28161683,4334.8,4334.1,0.3023]
[1757490938117,1.43133832,4334.5,4334.4,0.203]
[1757490938312,1.43133832,4334.5,4334.4,0.5053]
[1757490938313,1.74093832,4334.5,4334.4,0.5053]
[1757490938516,1.82783832,4334.5,4333.6,0.3023]
[1757490938821,0.1977,4333.7,4333.6,0.7041]
[1757490939123,0.1977,4333.7,4333.3,0.64836]
[1757490939124,0.3096,4334.1,4334.0,0.1243]
[1757490939324,0.7198,4334.1,4334.0,0.8284]
[1757490939621,0.7198,4334.1,4333.3,0.233]
[1757490939825,0.7198,4333.6,4333.5,0.8284]
[1757490942922,0.4102,4333.6,4333.5,0.8284]
[1757490943326,0.1977,4333.6,4333.5,0.8284]
[1757490943528,0.3096,4334.1,4333.5,0.5261]
[1757490943828,0.1977,4333.7,4333.6,0.7041]
[1757490945119,0.7198,4333.7,4333.6,0.7041]
[1757490945623,0.4102,4333.7,4333.6,0.7041]
[1757490945828,0.3096,4334.0,4333.6,0.4018]
[1757490946129,0.7198,4334.0,4333.9,0.7041]
[1757490946721,0.7198,4334.0,4333.9,0.3023]
[1757490946924,0.7198,4334.0,4333.5,0.1243]
[1757490947825,0.4184,4333.4,4333.2,0.3176]
[1757490948026,0.738,4333.3,4333.2,0.5292]
[1757490948226,0.738,4333.3,4333.2,0.7372]
[1757490949326,0.4184,4333.3,4333.2,0.7372]
[1757490950929,0.2048,4333.3,4333.2,0.7372]
[1757490953130,0.4184,4333.3,4333.2,0.7372]
[1757490953734,0.2048,4333.3,4333.2,0.7372]
[1757490954433,0.5244,4333.3,4333.2,0.7372]
[1757490954633,0.2048,4333.3,4333.2,0.7372]
[1757490954833,1.75913832,4333.3,4332.6,0.3176]
[1757490955031,1.55433832,4332.9,4332.8,0.2116]
[1757490955235,1.75913832,4332.9,4332.8,0.5292]
[1757490955436,1.75913832,4332.9,4332.8,0.7372]
[1757490955842,0.738,4332.9,4332.8,0.7372]
[1757490957938,1.75913832,4332.9,4332.2,0.1825876]
[1757490958135,0.3196,4332.2,4332.1,0.3176]
[1757490958335,0.3196,4332.1,4331.1,1.02113832]
[1757490958636,0.738,4331.7,4331.1,0.3176]
[1757490958837,0.3447,4332.0,4330.6,0.233]
[1757490958838,0.3196,4331.1,4330.6,0.3176]
[1757490959041,0.738,4330.7,4330.6,0.5292]
[1757490959239,0.738,4330.7,4330.0,0.1244]
[1757490959434,0.738,4330.5,4330.4,0.5292]
[1757490959735,0.4184,4331.2,4331.1,0.7372]
[1757490960538,0.738,4331.2,4330.6,0.3176]
[1757490960844,1.22593832,4331.1,4331.0,0.8616]
[1757490961034,0.2048,4331.1,4331.0,0.8616]
[1757490961441,0.3196,4331.7,4331.1,0.3176]
[1757490961745,0.2048,4331.7,4331.6,0.7372]
[1757490962243,0.2308,4332.0,4331.6,0.4196]
[1757490962436,0.2308,4332.0,4331.9,0.7372]
[1757490962744,0.3196,4331.9,4331.8,0.2116]
[1757490963036,0.2048,4331.9,4331.8,0.7372]
[1757490963242,0.2308,4332.0,4331.8,0.4196]
[1757490963444,0.2308,4332.0,4331.9,0.7372]
[1757490964340,0.4356,4332.0,4331.9,0.7372]
[1757490964646,0.6492,4332.0,4331.9,0.7372]
[1757490966344,0.9688,4332.0,4331.9,0.7372]
[1757490967041,0.6492,4332.0,4331.9,0.7372]
[1757490969929,0.9688,4332.0,4331.5,0.1244]
[1757490970135,0.738,4331.9,4331.8,0.5292]
[1757490970641,0.738,4331.9,4331.8,0.7372]
[1757490970946,0.4184,4331.9,4331.8,0.7372]
[1757490971434,0.2048,4331.9,4331.8,0.7372]
[1757490971830,0.3196,4332.1,4331.5,0.1244]
[1757490971831,0.4378,4332.5,4332.4,0.4196]
[1757490972037,0.738,4332.5,4332.4,0.7372]
[1757490972234,0.9688,4332.5,4332.4,0.7372]
[1757490973338,0.3196,4332.4,4332.1,0.3176]
[1757490973543,0.738,4332.4,4332.3,0.5292]
[1757490973935,0.738,4332.4,4332.3,0.7372]
[1757490974136,0.4184,4332.4,4332.3,0.7372]
[1757490974331,0.738,4332.4,4332.3,0.7372]
[1757490974542,0.738,4332.4,4331.6,0.3176]
[1757490974739,0.738,4331.7,4331.6,0.5292]
[1757490974944,0.738,4331.7,4331.6,0.7372]
[1757490975446,0.4184,4331.7,4331.6,0.7372]
[1757490976436,0.738,4331.7,4331.6,0.7372]
[1757490977248,0.738,4331.7,4331.6,0.2153]
[1757490977546,0.738,4331.7,4331.6,0.5399]
[1757490978156,0.738,4331.7,4331.6,0.7472]
[1757490978447,0.4184,4331.7,4331.6,0.7472]
[1757490979047,0.7424,4331.7,4331.6,0.7472]
[1757490981946,0.7424,4331.7,4329.2,2.31]
[1757490981947,4.97326,4331.7,4331.1,0.3246]
[1757490982152,0.4196,4330.6,4330.5,0.547]
[1757490982650,0.7436,4330.6,4330.5,0.8716]
[1757490982955,0.7436,4330.6,4330.1,0.3246]
[1757490983146,0.4196,4330.2,4330.1,0.2153]
[1757490983346,0.324,4330.6,4330.1,0.7472]
[1757490983548,0.324,4330.6,4330.2,0.3246]
[1757490983755,0.2062,4330.3,4330.2,0.3246]
[1757490984056,0.4196,4330.3,4330.2,0.7472]
[1757490984250,0.7436,4330.3,4330.2,0.7472]
[1757490985353,0.4196,4330.3,4330.2,0.7472]
[1757490985547,0.4196,4330.3,4330.0,0.1244]
[1757490985743,0.7436,4330.2,4330.1,0.3246]
[1757490985952,0.7436,4330.2,4330.1,0.5399]
[1757490986154,0.7436,4330.2,4330.1,0.7472]
[1757490986354,0.7436,4330.2,4329.6,0.3246]
[1757490986655,0.97455,4330.2,4329.6,0.3246]
[1757490987747,0.7436,4330.2,4329.6,0.3246]
[1757490988251,0.4196,4329.7,4329.6,0.7472]
[1757490989051,0.2062,4329.7,4329.6,0.7472]
[1757490990248,0.4196,4329.7,4329.6,0.7472]
[1757490991159,0.2062,4329.7,4329.6,0.7472]
[1757490991659,0.7436,4330.3,4330.2,0.2153]
[1757490991959,0.97455,4330.3,4330.2,0.5399]
[1757490992361,0.9806,4330.3,4330.2,0.5399]
[1757490992853,0.7436,4330.3,4330.2,0.7472]
[1757490993062,0.4196,4330.3,4330.2,0.7472]
[1757490993656,0.2062,4330.3,4330.2,0.7472]
[1757490994955,0.561,4330.7,4330.2,0.7472]
[1757490995149,0.561,4330.7,4330.3,0.7472]
[1757490995150,0.2062,4330.4,4330.3,0.7472]
[1757490995354,0.7436,4330.4,4330.3,0.5399]
[1757490995958,0.7436,4330.4,4330.3,0.7472]
[1757490996359,0.9745,4330.4,4330.3,0.7472]
[1757490996559,0.9745,4330.4,4330.3,0.5399]
[1757490997561,0.9745,4330.4,4330.0,0.1299]
[1757490997865,0.7436,4330.3,4330.2,0.2153]
[1757490998061,0.7436,4330.3,4330.2,0.5399]
[1757491000777,0.7436,4330.3,4330.2,0.7472]
[1757491001881,0.4196,4330.3,4330.2,0.7472]
[1757491003275,0.2309,4330.4,4330.2,0.7472]
[1757491003475,0.2309,4330.4,4330.3,0.3246]
[1757491003678,0.2309,4330.4,4330.3,0.7472]
[1757491004182,0.4371,4330.4,4330.3,0.7472]
[1757491007079,0.9527,4330.4,4330.3,0.7472]
[1757491007280,0.9527,4330.4,4330.3,0.3246]
[1757491007971,0.9527,4330.4,4330.3,0.5402]
[1757491009177,0.9527,4330.4,4330.3,0.754]
[1757491009379,0.6366,4330.4,4330.3,0.754]
[1757491009575,0.4371,4330.4,4330.3,0.754]
[1757491010685,0.4669,4330.4,4330.3,0.754]
[1757491010885,0.2309,4330.4,4330.3,0.754]
[1757491012989,0.4362,4330.4,4330.3,0.754]
[1757491013388,0.9518,4330.4,4330.3,0.754]
[1757491014589,0.6357,4330.4,4330.3,0.754]
[1757491015382,0.4362,4330.4,4330.3,0.754]
[1757491015589,0.2309,4330.4,4330.3,0.754]
[1757491016081,0.4362,4330.4,4330.3,0.754]
[1757491020698,1.1878,4330.4,4330.3,0.754]
[1757491020894,1.75073048,4330.4,4330.3,0.3246]
[1757491021200,1.75073048,4330.4,4330.1,0.2968]
[1757491021399,0.7209,4330.2,4330.1,0.2968]
[1757491021602,0.7209,4330.2,4329.6,0.2968]
[1757491021892,0.7209,4329.7,4328.6,0.2968]
[1757491022092,0.2053,4328.8,4328.7,0.4294]
[1757491022397,0.6723,4328.8,4328.7,0.7262]
[1757491022594,0.4363,4328.8,4328.7,0.7262]
[1757491022794,0.467,4328.8,4328.7,0.7262]
[1757491023692,0.6723,4328.8,4328.7,0.7262]
[1757491024799,0.4363,4328.8,4328.7,0.7262]
[1757491025000,0.3161,4328.7,4328.1,1.83341712]
[1757491025195,0.7209,4328.6,4328.5,0.2156]
[1757491025398,0.7209,4328.6,4328.5,0.5518]
[1757491025597,0.7209,4328.6,4328.5,0.8486]
[1757491026101,0.4048,4328.6,4328.5,0.8486]
[1757491026399,0.231,4328.8,4328.7,0.7262]
[1757491030299,0.231,4328.8,4328.7,1.74878283]
[1757491030495,0.5214,4329.7,4329.6,0.7262]
[1757491030901,0.7209,4329.7,4329.6,0.7262]
[1757491031103,1.74348283,4329.7,4329.6,0.7262]
[1757491031499,0.5214,4330.4,4329.7,0.2968]
[1757491031698,2.54059051,4330.3,4330.2,0.7262]
[1757491031898,2.30459051,4330.3,4330.2,0.7262]
[1757491032200,0.7209,4330.3,4330.2,0.7262]
[1757491032499,0.3161,4330.6,4330.3,0.2968]
[1757491032696,0.5214,4330.6,4330.5,0.7262]
[1757491033093,0.5214,4330.6,4330.5,0.8486]
[1757491033300,0.2053,4330.6,4330.5,0.8486]
[1757491033504,0.3161,4330.9,4330.5,0.5518]
[1757491033798,0.7305,4331.0,4330.9,0.5124]
[1757491034005,0.4945,4331.0,4330.9,0.5124]
[1757491034304,0.8106,4331.0,4330.9,0.5124]
[1757491034704,0.9569,4331.0,4330.9,0.7262]
[1757491035094,0.7209,4331.0,4330.9,0.7262]
[1757491035299,33.272,4331.3,4331.0,0.1224]
[1757491035300,33.5881,4331.3,4331.0,0.1224]
[1757491035505,0.2053,4331.3,4331.2,0.7262]
[1757491035895,0.3161,4331.5,4331.3,0.2968]
[1757491036099,0.2053,4331.4,4331.3,0.7262]
[1757491036407,0.1196,4332.0,4331.5,0.1224]
[1757491036607,0.7209,4332.0,4331.9,0.7262]
[1757491037296,1.86628283,4332.0,4331.9,0.2156]
[1757491038504,1.86628283,4332.0,4331.1,0.2942]
[1757491038800,1.86628283,4332.0,4331.1,0.689]
[1757491038801,0.7313,4331.2,4331.1,0.689]
[1757491040206,0.1957,4331.2,4331.1,0.689]
[1757491041104,0.3208,4331.5,4331.2,0.2942]
[1757491041305,0.5165,4331.5,4331.4,0.689]
[1757491041604,0.7313,4331.5,4331.4,0.689]
[1757491042203,0.1957,4331.5,4331.4,0.689]
[1757491042397,0.5165,4331.9,4331.8,0.689]
[1757491042600,0.7313,4331.9,4331.8,0.689]
[1757491045098,0.235,4332.2,4331.9,0.2942]
[1757491045311,0.1957,4332.0,4331.9,0.2942]
[1757491045611,0.1957,4332.0,4331.9,0.689]
[1757491045806,0.5165,4332.0,4331.9,0.689]
[1757491048502,0.7313,4332.0,4331.9,0.689]
[1757491049812,0.8541,4332.0,4331.5,0.1217]
[1757491050011,0.8541,4332.0,4331.6,0.2942]
[1757491050207,0.8541,4332.0,4331.5,0.1217]
[1757491052216,0.8541,4332.0,4331.6,0.2942]
[1757491052713,0.8541,4332.0,4331.1,0.2942]
[1757491052910,0.1957,4331.3,4331.2,0.689]
[1757491053208,0.5165,4331.3,4331.2,0.91986]
[1757491053410,0.5165,4331.3,4331.2,0.689]
[1757491053608,0.5165,4331.3,4331.2,0.91988]
[1757491053808,1.75388283,4331.3,4331.2,0.689]
[1757491054009,1.75388283,4331.3,4330.9,0.2942]
[1757491054210,0.5333,4331.0,4330.9,0.491]
[1757491054417,0.8541,4331.0,4330.5,0.1224]
[1757491054617,0.8541,4331.0,4329.5,33.3917]
[1757491054618,0.7313,4330.1,4330.0,0.689]
[1757491055624,0.7313,4330.1,4329.0,0.1217]
[1757491055914,0.7313,4328.6,4328.5,0.8107]
[1757491056110,0.1957,4329.1,4329.0,0.1968]
[1757491056309,0.7313,4329.1,4329.0,0.1968]
[1757491056510,0.7313,4329.1,4328.1,1.8725518]
[1757491056709,0.7313,4328.3,4328.2,0.689]
[1757491057916,0.7313,4328.3,4328.2,0.491]
[1757491058520,0.7313,4328.3,4328.2,0.689]
[1757491058826,0.1957,4328.3,4328.2,0.689]